bitfinex/quotes_BTCUSD_20250610
["timestamp","ask_amount","ask_price","bid_price","bid_amount"]
[1749581968099,0.77268229,109250.0,109240.0,0.20196967]
[1749581968727,0.77268229,109250.0,109240.0,0.2019688]
[1749581969207,0.74480229,109250.0,109240.0,0.10248888]
[1749581969395,0.77268229,109250.0,109240.0,0.20196888]
[1749581969635,0.77268229,109250.0,109240.0,0.2019688]
[1749581969842,0.77268229,109250.0,109240.0,0.18512552]
[1749581970053,0.77268229,109250.0,109240.0,0.2019691]
[1749581970524,0.77268229,109250.0,109240.0,0.20196903]
[1749581970741,0.77268229,109250.0,109240.0,0.20196891]
[1749581970963,0.20761741,109250.0,109240.0,0.20196891]
[1749581971219,0.77268229,109250.0,109240.0,0.20196891]
[1749581971864,0.79098791,109250.0,109240.0,0.08564552]
[1749581972066,0.78183502,109250.0,109240.0,0.10248981]
[1749581972283,0.79098783,109250.0,109240.0,0.10248981]
[1749581973451,0.80014081,109250.0,109240.0,0.08564552]
[1749581973857,0.80014081,109250.0,109240.0,0.10249075]
[1749581974076,0.80014081,109250.0,109240.0,0.08564552]
[1749581974280,0.79098783,109250.0,109240.0,0.10249202]
[1749581975296,0.84781747,109250.0,109240.0,0.10249202]
[1749581975444,0.84781747,109250.0,109240.0,0.10249338]
[1749581976765,1.03088383,109250.0,109240.0,0.10249798]
[1749581976957,1.04003689,109250.0,109240.0,0.10249798]
[1749581977164,1.4208845,109250.0,109240.0,0.03899798]
[1749581977368,1.5703245,109250.0,109240.0,0.03899798]
[1749581977745,1.5703245,109250.0,109240.0,0.03900712]
[1749581978377,0.94842998,109250.0,109240.0,0.03900712]
[1749581978693,1.5703245,109250.0,109240.0,0.03900706]
[1749581978899,1.5703245,109250.0,109240.0,0.03900716]
[1749581979127,1.5703245,109250.0,109240.0,0.0390075]
[1749581980078,1.5703245,109250.0,109240.0,0.0390234]
[1749581980511,1.5703245,109250.0,109240.0,0.02214552]
[1749581980705,1.5703245,109250.0,109240.0,0.03902334]
[1749581980906,1.5203245,109250.0,109240.0,0.02214552]
[1749581981151,1.5703245,109250.0,109240.0,0.03902318]
[1749581981578,1.51117144,109250.0,109240.0,0.03902318]
[1749581981780,1.55201829,109250.0,109240.0,0.03902318]
[1749581981926,1.50201829,109250.0,109240.0,0.03902318]
[1749581982130,1.55201829,109250.0,109240.0,0.03904843]
[1749581982301,1.55201829,109250.0,109240.0,0.03904847]
[1749581982508,1.55201829,109250.0,109240.0,0.03904849]
[1749581982714,1.64337169,109250.0,109240.0,0.03904849]
[1749581983542,1.64337169,109250.0,109240.0,0.03907869]
[1749581983748,1.55201829,109250.0,109240.0,0.03907869]
[1749581983945,1.55201829,109250.0,109240.0,0.0390787]
[1749581984197,1.57341829,109250.0,109240.0,0.02214552]
[1749581984832,1.55201829,109250.0,109240.0,0.03907931]
[1749581984994,1.55201829,109250.0,109240.0,0.03907962]
[1749581985202,1.57336682,109250.0,109240.0,0.03907962]
[1749581985807,1.57336682,109250.0,109240.0,0.03909506]
[1749581986223,1.57336682,109250.0,109240.0,0.03909508]
[1749581986807,1.57336682,109250.0,109240.0,0.03909463]
[1749581987421,1.57336682,109250.0,109240.0,0.03909468]
[1749581988925,1.57336682,109250.0,109240.0,0.03909307]
[1749581989952,1.57336682,109250.0,109240.0,0.02214552]
[1749581990157,1.57336682,109250.0,109240.0,0.03909192]
[1749581990330,1.57336682,109250.0,109240.0,0.0390919]
[1749581990710,1.57336682,109250.0,109240.0,0.02214552]
[1749581990914,1.57336682,109250.0,109240.0,0.03909209]
[1749581991111,1.57336682,109250.0,109240.0,0.02214552]
[1749581991317,1.57336682,109250.0,109240.0,0.03909208]
[1749581991521,1.57336682,109250.0,109240.0,0.05484552]
[1749581991852,1.57336682,109250.0,109240.0,0.07179207]
[1749581992058,1.57336682,109250.0,109240.0,0.07179437]
[1749581992575,1.57336682,109250.0,109240.0,0.07179381]
[1749581993439,1.57320682,109250.0,109240.0,0.07179338]
[1749581993864,1.44604682,109250.0,109240.0,0.07179338]
[1749581994096,1.57320682,109250.0,109240.0,0.07179338]
[1749581994318,1.56101152,109250.0,109240.0,0.08724552]
[1749581994530,1.5701645,109250.0,109240.0,0.10419381]
[1749581994728,0.63804312,109250.0,109240.0,0.10419381]
[1749581994964,0.76520312,109250.0,109240.0,0.10419381]
[1749581995172,1.38709764,109250.0,109240.0,0.10419381]
[1749581995387,1.39625079,109250.0,109240.0,0.10419268]
[1749581995609,1.58847046,109250.0,109240.0,0.10419251]
[1749581995822,1.4054041,109250.0,109240.0,0.10419251]
[1749581996003,0.77435627,109250.0,109240.0,0.10419251]
[1749581996159,1.57931715,109250.0,109240.0,0.10419403]
[1749581996831,1.40540402,109250.0,109240.0,0.10419403]
[1749581997037,1.58847038,109250.0,109240.0,0.10419403]
[1749581997261,1.40540402,109250.0,109240.0,0.10419403]
[1749581997469,1.39625079,109250.0,109240.0,0.10419403]
[1749581997681,1.4054041,109250.0,109240.0,0.10419403]
[1749581997890,1.39625079,109250.0,109240.0,0.10419403]
[1749581998102,1.4054041,109250.0,109240.0,0.10419403]
[1749581998343,1.4054041,109250.0,109240.0,0.10419699]
[1749581998344,1.39625079,109250.0,109240.0,0.10419699]
[1749581998552,1.4054041,109250.0,109240.0,0.10419794]
[1749581998769,1.39625079,109250.0,109240.0,0.10419794]
[1749581999449,1.40540402,109250.0,109240.0,0.1041983]
[1749581999671,1.58847038,109250.0,109240.0,0.1041983]
[1749581999885,1.39625079,109250.0,109240.0,0.1041983]
[1749582000304,1.4054041,109250.0,109240.0,0.10420323]
[1749582000522,1.58847046,109250.0,109240.0,0.08724552]
[1749582000747,1.4054041,109250.0,109240.0,0.08724552]
[1749582000996,1.24163193,109250.0,109240.0,0.10420385]
[1749582001232,1.31879193,109250.0,109240.0,0.10420645]
[1749582001476,0.51973741,109250.0,109240.0,0.12116726]
[1749582001719,0.16519656,109250.0,109240.0,0.12116726]
[1749582001944,0.1188134,109250.0,109240.0,0.84238178]
[1749582002171,0.02746,109250.0,109240.0,1.06738178]
[1749582002401,0.02746,109250.0,109240.0,1.05042097]
[1749582002630,0.0278,109260.0,109250.0,0.62189452]
[1749582002864,0.08953634,109260.0,109250.0,0.68599452]
[1749582003099,0.08953634,109260.0,109250.0,0.7029247]
[1749582003348,0.055254,109260.0,109250.0,0.68599452]
[1749582004006,0.0278,109260.0,109250.0,0.68599452]
[1749582004236,0.0278,109260.0,109250.0,0.0641]
[1749582004451,0.49400001,109260.0,109250.0,0.16342]
[1749582004703,0.4591534,109260.0,109250.0,0.16342]
[1749582005140,0.4591534,109260.0,109250.0,0.16442]
[1749582005578,1.09558877,109260.0,109250.0,0.0651]
[1749582005803,1.09558877,109260.0,109250.0,0.16442]
[1749582006054,1.06778877,109260.0,109250.0,0.0671]
[1749582006284,1.09550877,109260.0,109250.0,0.16642]
[1749582006496,1.0945934,109260.0,109250.0,0.16642]
[1749582008698,0.46471691,109260.0,109250.0,0.16642]
[1749582008923,0.49243691,109260.0,109250.0,0.16642]
[1749582009139,0.36772,109260.0,109250.0,0.78831452]
[1749582010838,0.36772,109260.0,109250.0,0.16642]
[1749582011304,0.37772,109260.0,109250.0,0.16642]
[1749582011509,0.35,109260.0,109250.0,0.16642]
[1749582012684,0.377454,109260.0,109250.0,0.16642]
[1749582016925,0.377454,109260.0,109250.0,0.0671]
[1749582017138,0.377454,109260.0,109250.0,0.16634]
[1749582018882,0.377454,109260.0,109250.0,0.0671]
[1749582019066,0.377454,109260.0,109250.0,0.16634]
[1749582019283,0.48334825,109260.0,109250.0,0.16634]
[1749582019727,0.48334825,109260.0,109250.0,0.0671]
[1749582019955,0.48334825,109260.0,109250.0,0.16634]
[1749582022497,0.48334825,109260.0,109250.0,0.1663]
[1749582024732,0.51106825,109260.0,109250.0,0.1663]
[1749582025378,0.48334825,109260.0,109250.0,0.78819452]
[1749582025624,0.4965274,109260.0,109250.0,0.78819452]
[1749582026073,0.4688074,109260.0,109250.0,0.78819452]
[1749582026292,0.405174,109260.0,109250.0,0.78819452]
[1749582026497,0.377454,109260.0,109250.0,0.78819452]
[1749582027134,0.037454,109260.0,109250.0,1.17126088]
[1749582027355,0.01,109260.0,109250.0,2.02061442]
[1749582027572,0.01,109260.0,109250.0,2.02061459]
[1749582027779,0.01,109260.0,109250.0,1.37126088]
[1749582028047,0.01,109260.0,109250.0,1.38956709]
[1749582028260,0.01,109260.0,109250.0,1.38041403]
[1749582028478,0.01,109260.0,109250.0,1.38956726]
[1749582028684,0.01,109260.0,109250.0,1.39872032]
[1749582029362,0.01,109260.0,109250.0,0.57545331]
[1749582029602,0.01,109260.0,109250.0,1.38956725]
[1749582029804,0.01,109260.0,109250.0,1.38956734]
[1749582030017,0.01,109260.0,109250.0,1.40787338]
[1749582030254,0.01,109260.0,109250.0,1.41702627]
[1749582030468,0.01,109260.0,109250.0,2.03892021]
[1749582031104,0.01,109260.0,109250.0,0.78597844]
[1749582031343,0.01,109260.0,109250.0,1.41702535]
[1749582031540,0.01,109260.0,109250.0,1.41402535]
[1749582031749,0.01,109260.0,109250.0,1.41702535]
[1749582031959,0.01,109260.0,109250.0,1.38956725]
[1749582032171,0.01,109260.0,109250.0,1.40787287]
[1749582032376,0.01,109260.0,109250.0,1.40172023]
[1749582032583,0.01,109260.0,109250.0,1.41087312]
[1749582032991,0.01,109260.0,109250.0,1.40172023]
[1749582033416,0.01,109260.0,109250.0,1.41087312]
[1749582033824,0.01,109260.0,109250.0,1.40172023]
[1749582034246,0.01,109260.0,109250.0,1.38341419]
[1749582034455,0.01,109260.0,109250.0,1.39256742]
[1749582034665,0.01,109260.0,109250.0,1.40172048]
[1749582035312,0.01,109260.0,109250.0,1.40172057]
[1749582035717,0.01,109260.0,109250.0,1.39256742]
[1749582035950,0.01,109260.0,109250.0,1.20950106]
[1749582036160,0.01,109260.0,109250.0,1.20026783]
[1749582036370,0.01,109260.0,109250.0,1.09199452]
[1749582036610,0.01,109260.0,109250.0,1.20026783]
[1749582036802,0.01,109260.0,109250.0,0.4701]
[1749582037009,0.01,109260.0,109250.0,1.19111452]
[1749582040967,0.01,109260.0,109250.0,1.20026783]
[1749582041176,0.01,109260.0,109250.0,1.19111452]
[1749582044758,0.01,109260.0,109250.0,1.20026783]
[1749582044977,0.01,109260.0,109250.0,1.19111452]
[1749582045600,0.01,109260.0,109250.0,1.20026783]
[1749582045808,0.01,109260.0,109250.0,1.19111452]
[1749582047730,0.01,109260.0,109250.0,1.20026783]
[1749582047971,0.01,109260.0,109250.0,0.56922]
[1749582048420,0.01,109260.0,109250.0,1.19111452]
[1749582052693,0.01,109260.0,109250.0,1.19103452]
[1749582053729,0.01,109260.0,109250.0,0.4701]
[1749582053933,0.01,109260.0,109250.0,1.19103452]
[1749582057777,0.01,109260.0,109250.0,2.00514871]
[1749582057980,0.01,109260.0,109250.0,2.02345492]
[1749582058491,0.01,109260.0,109250.0,2.03260773]
[1749582058694,0.01,109260.0,109250.0,2.03260781]
[1749582058896,0.01,109260.0,109250.0,2.02345492]
[1749582059113,0.01,109260.0,109250.0,2.023455]
[1749582059253,0.01,109260.0,109250.0,2.13311411]
[1749582059469,0.01,109260.0,109250.0,0.91432507]
[1749582059681,0.01,109260.0,109250.0,2.15811411]
[1749582059908,0.01,109260.0,109250.0,2.33708253]
[1749582060055,0.00061116,109260.0,109250.0,2.67708253]
[1749582060479,0.00061116,109260.0,109250.0,2.49811411]
[1749582061568,0.00061116,109260.0,109250.0,2.39907411]
[1749582061777,0.00061116,109260.0,109250.0,2.49803411]
[1749582062073,0.00061116,109260.0,109250.0,2.67865717]
[1749582062300,0.00061116,109260.0,109250.0,2.67565717]
[1749582062521,0.00061116,109260.0,109250.0,2.58069717]
[1749582062732,0.00061116,109260.0,109250.0,2.67965717]
[1749582063373,0.00061116,109260.0,109250.0,2.67665717]
[1749582063797,0.00061116,109260.0,109250.0,2.67965717]
[1749582064019,0.00061116,109260.0,109250.0,2.58069717]
[1749582064245,0.00061116,109260.0,109250.0,2.67965717]
[1749582064883,0.00061116,109260.0,109250.0,2.58069717]
[1749582065118,0.00061116,109260.0,109250.0,2.03945703]
[1749582065327,0.00061116,109260.0,109250.0,2.44550461]
[1749582065547,0.00061116,109260.0,109250.0,2.05776265]
[1749582065799,0.00061116,109260.0,109250.0,2.67050428]
[1749582065989,0.00061116,109260.0,109250.0,2.05776249]
[1749582066435,0.00061116,109260.0,109250.0,2.67965701]
[1749582067341,0.00061116,109260.0,109250.0,2.65215824]
[1749582067575,0.00061116,109260.0,109250.0,1.70497098]
[1749582067787,0.00061116,109260.0,109250.0,1.80389098]
[1749582068001,0.00061116,109260.0,109250.0,1.81304429]
[1749582068217,0.00061116,109260.0,109250.0,1.62326792]
[1749582068437,0.00061116,109260.0,109250.0,1.63242123]
[1749582068883,0.00061116,109260.0,109250.0,1.52434792]
[1749582069093,0.00061116,109260.0,109250.0,1.09299452]
[1749582069302,0.00061116,109260.0,109250.0,1.19191452]
[1749582071471,0.00061116,109260.0,109250.0,0.4711]
[1749582071694,0.00061116,109260.0,109250.0,0.57002]
[1749582071902,0.00061116,109260.0,109250.0,1.19191452]
[1749582074663,0.00061116,109260.0,109250.0,1.38413419]
[1749582074889,0.00061116,109260.0,109250.0,2.13153526]
[1749582075123,0.00061116,109260.0,109250.0,2.14984097]
[1749582075343,0.00061116,109260.0,109250.0,2.14068824]
[1749582075544,0.00061116,109260.0,109250.0,2.14984097]
[1749582079245,0.00061116,109260.0,109250.0,0.90605201]
[1749582079441,0.00061116,109260.0,109250.0,1.52794653]
[1749582079653,0.00061116,109260.0,109250.0,1.52794661]
[1749582080100,0.00061116,109260.0,109250.0,0.91520432]
[1749582080296,0.00061116,109260.0,109250.0,2.14984063]
[1749582080503,0.00061116,109260.0,109250.0,1.53709884]
[1749582080912,0.00061116,109260.0,109250.0,1.52794611]
[1749582081122,0.00061116,109260.0,109250.0,1.53709884]
[1749582082172,0.00061116,109260.0,109250.0,1.52794611]
[1749582082374,0.00061116,109260.0,109250.0,1.53709884]
[1749582082577,0.00061116,109260.0,109250.0,1.5187933]
[1749582082776,0.00061116,109260.0,109250.0,1.53709884]
[1749582083686,0.00061116,109260.0,109250.0,1.5187933]
[1749582083891,0.00061116,109260.0,109250.0,1.52794603]
[1749582085139,0.00061116,109260.0,109250.0,0.90605151]
[1749582085339,0.00061116,109260.0,109250.0,1.52794603]
[1749582087008,0.00061116,109260.0,109250.0,2.14984055]
[1749582090097,0.00061116,109260.0,109250.0,1.5187933]
[1749582090303,0.00061116,109260.0,109250.0,1.52794611]
[1749582091562,0.00061116,109260.0,109250.0,1.53709884]
[1749582093029,0.00061116,109260.0,109250.0,0.89689878]
[1749582093247,0.00061116,109260.0,109250.0,1.5187933]
[1749582093449,0.00061116,109260.0,109250.0,1.52794603]
[1749582094077,0.00061116,109260.0,109250.0,1.5187933]
[1749582094294,0.00061116,109260.0,109250.0,1.52794603]
[1749582094916,0.00061116,109260.0,109250.0,1.5187933]
[1749582095167,0.00061116,109260.0,109250.0,1.53709884]
[1749582096626,0.00061116,109260.0,109250.0,1.7177219]
[1749582099318,0.00061116,109260.0,109250.0,1.69941636]
[1749582099526,0.00061116,109260.0,109250.0,1.70856909]
[1749582100172,0.00061116,109260.0,109250.0,1.52794603]
[1749582100445,0.00061116,109260.0,109250.0,2.14984055]
[1749582100868,0.00061116,109260.0,109250.0,2.33046361]
[1749582101089,0.00061116,109260.0,109250.0,2.60546361]
[1749582101311,3.608e-05,109260.0,109250.0,2.60546361]
[1749582102856,3.608e-05,109260.0,109250.0,2.94546361]
[1749582103752,3.608e-05,109260.0,109250.0,2.76484055]
[1749582103959,3.608e-05,109260.0,109250.0,3.30215523]
[1749582104180,0.002,109290.0,109280.0,1.32206202]
[1749582104408,0.002,109290.0,109280.0,1.42078202]
[1749582105048,0.002,109290.0,109280.0,2.13402994]
[1749582105489,0.00204885,109290.0,109280.0,2.13402994]
[1749582105708,0.00204885,109290.0,109280.0,2.31474035]
[1749582106767,0.00204885,109290.0,109280.0,2.31574035]
[1749582107829,0.00204885,109290.0,109280.0,2.24186862]
[1749582108048,0.00204885,109290.0,109280.0,1.5949741]
[1749582108271,0.00204885,109290.0,109280.0,1.49365419]
[1749582108497,0.00204885,109290.0,109280.0,1.43011348]
[1749582108711,0.00204885,109290.0,109280.0,1.53794369]
[1749582108930,0.00204885,109290.0,109280.0,1.54709416]
[1749582109149,0.00204885,109290.0,109280.0,1.44841416]
[1749582109381,0.00204885,109290.0,109280.0,1.54709416]
[1749582109594,0.00204885,109290.0,109280.0,1.52879348]
[1749582110243,0.43422981,109320.0,109310.0,0.2]
[1749582110502,0.52558321,109320.0,109310.0,0.29868]
[1749582110726,0.52563177,109320.0,109310.0,0.29868]
[1749582110937,0.52563177,109320.0,109310.0,0.2]
[1749582111155,1.14752629,109320.0,109310.0,0.2]
[1749582111585,1.16206714,109320.0,109310.0,0.09868]
[1749582111792,1.16406714,109320.0,109310.0,0.09868]
[1749582112042,0.0489,109300.0,109290.0,0.2]
[1749582112254,0.0489,109300.0,109290.0,0.29868]
[1749582113412,0.0499,109300.0,109290.0,0.29868]
[1749582114643,0.0599,109300.0,109290.0,0.29868]
[1749582116309,0.0385,109300.0,109290.0,0.29868]
[1749582117283,0.0599,109300.0,109290.0,0.29868]
[1749582118677,0.0385,109300.0,109290.0,0.29868]
[1749582118884,0.011,109300.0,109290.0,0.29868]
[1749582120865,0.011,109300.0,109290.0,1.80656806]
[1749582121072,0.011,109300.0,109290.0,1.82241835]
[1749582121298,0.011,109300.0,109290.0,1.639419]
[1749582121553,0.011,109300.0,109290.0,1.20967371]
[1749582121790,0.011,109300.0,109290.0,1.84986724]
[1749582122019,0.011,109300.0,109290.0,1.84071794]
[1749582122498,0.011,109300.0,109290.0,1.84986748]
[1749582122982,0.011,109300.0,109290.0,1.95037026]
[1749582123227,0.011,109300.0,109290.0,1.75037026]
[1749582124280,0.00144856,109330.0,109320.0,0.2]
[1749582124493,0.00144856,109330.0,109320.0,0.29874552]
[1749582125558,0.01044856,109330.0,109320.0,0.29874552]
[1749582126061,0.05934856,109330.0,109320.0,0.29874552]
[1749582126498,0.05898258,109330.0,109320.0,0.29874552]
[1749582126709,0.03758258,109330.0,109320.0,0.29874552]
[1749582127355,0.05898258,109330.0,109320.0,0.29874552]
[1749582128006,0.03758258,109330.0,109320.0,0.29874552]
[1749582128225,0.01008258,109330.0,109320.0,0.29874552]
[1749582128665,0.02008258,109330.0,109320.0,0.29874552]
[1749582129299,0.019,109330.0,109320.0,0.29874552]
[1749582131247,1.07037908,109340.0,109320.0,0.29874552]
[1749582131452,1.16173248,109340.0,109320.0,0.29874552]
[1749582132582,0.005,109340.0,109330.0,0.90889452]
[1749582133467,0.002,109340.0,109330.0,0.90889452]
[1749582133678,0.004,109340.0,109330.0,0.90889452]
[1749582133892,0.002,109340.0,109330.0,0.2]
[1749582134098,0.96389452,109340.0,109330.0,0.29856]
[1749582134316,1.05524792,109340.0,109330.0,0.29852]
[1749582134532,1.10414792,109340.0,109330.0,0.29852]
[1749582134959,0.4802534,109340.0,109330.0,0.29852]
[1749582135173,0.50777914,109340.0,109330.0,0.29952]
[1749582135808,0.53365803,109340.0,109330.0,0.29952]
[1749582136441,0.51225803,109340.0,109330.0,0.29952]
[1749582136683,0.49475803,109340.0,109330.0,0.29952]
[1749582138253,0.46723229,109340.0,109330.0,0.29952]
[1749582138739,1.11052681,109340.0,109330.0,0.201]
[1749582138960,1.13802681,109340.0,109330.0,0.001]
[1749582139179,1.18359728,109340.0,109330.0,0.001]
[1749582139405,1.26642901,109340.0,109330.0,0.001]
[1749582139656,1.41034527,109340.0,109330.0,0.001]
[1749582139861,2.08224355,109340.0,109330.0,0.001]
[1749582140103,2.08324355,109340.0,109330.0,0.001]
[1749582140571,2.08331384,109340.0,109330.0,0.001]
[1749582140815,0.01454085,109330.0,109320.0,0.00014552]
[1749582141105,0.15479425,109330.0,109320.0,0.00014552]
[1749582141312,0.85396877,109330.0,109320.0,0.00014552]
[1749582141534,1.2531148,109330.0,109320.0,0.00014552]
[1749582141741,1.27140727,109330.0,109320.0,0.00014552]
[1749582141954,1.45533967,109330.0,109320.0,0.00014552]
[1749582142170,2.07723478,109330.0,109320.0,0.00014552]
[1749582143298,2.25792207,109330.0,109320.0,0.00014552]
[1749582143792,2.25992207,109330.0,109320.0,0.00014552]
[1749582144215,2.16856867,109330.0,109320.0,0.00014552]
[1749582146601,2.16860867,109330.0,109320.0,0.00014552]
[1749582146836,2.15946231,109330.0,109320.0,0.00014552]
[1749582147442,1.48034347,109330.0,109320.0,0.00014552]
[1749582148422,1.16246445,109330.0,109320.0,0.00014552]
[1749582148673,1.31570246,109330.0,109320.0,0.00014552]
[1749582148895,1.13075626,109330.0,109320.0,0.00014552]
[1749582149117,1.0490236,109330.0,109320.0,0.00014552]
[1749582149348,1.0763436,109330.0,109320.0,0.00014552]
[1749582149779,1.09088445,109330.0,109320.0,0.00014552]
[1749582150853,0.93223785,109330.0,109320.0,0.00014552]
[1749582151311,0.36756765,109330.0,109320.0,0.00014552]
[1749582151544,0.41756765,109330.0,109320.0,0.00014552]
[1749582152001,0.36756765,109330.0,109320.0,0.00014552]
[1749582152437,0.37756765,109330.0,109320.0,0.00014552]
[1749582152644,0.94223785,109330.0,109320.0,0.00014552]
[1749582152853,0.850377,109330.0,109320.0,0.00014552]
[1749582153074,0.877697,109330.0,109320.0,0.03334552]
[1749582153289,0.927697,109330.0,109320.0,0.00014552]
[1749582153492,0.3130268,109330.0,109320.0,0.00014552]
[1749582153706,0.1591144,109330.0,109320.0,0.03334552]
[1749582153946,0.1316734,109330.0,109320.0,0.13178552]
[1749582154149,0.4716734,109330.0,109320.0,0.13178552]
[1749582154357,1.0353436,109330.0,109320.0,0.09858552]
[1749582154772,1.0343436,109330.0,109320.0,0.09858552]
[1749582155191,1.0353436,109330.0,109320.0,0.09858552]
[1749582155400,0.4706734,109330.0,109320.0,0.09858552]
[1749582155807,1.0353436,109330.0,109320.0,0.09858552]
[1749582157422,1.0353436,109330.0,109320.0,0.00014552]
[1749582158191,1.0353436,109330.0,109320.0,0.09858552]
[1749582161536,1.0353436,109330.0,109320.0,0.13008552]
[1749582161953,1.0353436,109330.0,109320.0,0.12957063]
[1749582163690,1.0353436,109330.0,109320.0,0.0315]
[1749582163897,1.0353436,109330.0,109320.0,0.1299]
[1749582166475,1.0353436,109330.0,109320.0,0.1599]
[1749582167127,0.4706734,109330.0,109320.0,0.1599]
[1749582167569,0.4316734,109330.0,109320.0,0.1599]
[1749582168433,0.9963436,109330.0,109320.0,0.1599]
[1749582168872,0.9690236,109330.0,109320.0,0.1599]
[1749582169096,0.9962236,109330.0,109320.0,0.1599]
[1749582169322,1.05242136,109330.0,109320.0,0.1599]
[1749582173642,0.4315534,109330.0,109320.0,0.1599]
[1749582173848,1.05242136,109330.0,109320.0,0.1599]
[1749582174690,1.01342136,109330.0,109320.0,0.1599]
[1749582175337,1.04086236,109330.0,109320.0,0.1599]
[1749582179078,1.04086236,109330.0,109320.0,0.3599]
[1749582179320,0.406641,109330.0,109320.0,0.3599]
[1749582180559,0.402341,109330.0,109320.0,0.3599]
[1749582181835,0.363341,109330.0,109320.0,0.3599]
[1749582182042,0.98420896,109330.0,109320.0,0.3599]
[1749582183087,0.98420896,109330.0,109320.0,0.0615]
[1749582183299,0.98420896,109330.0,109320.0,0.35982]
[1749582184367,0.363341,109330.0,109320.0,0.35982]
[1749582184576,0.98420896,109330.0,109320.0,0.35982]
[1749582185001,0.98420896,109330.0,109320.0,0.2615]
[1749582185213,0.98420896,109330.0,109320.0,0.35982]
[1749582187247,0.363341,109330.0,109320.0,0.35982]
[1749582187475,0.98420896,109330.0,109320.0,0.35982]
[1749582188780,0.056641,109330.0,109320.0,0.35982]
[1749582189002,0.67750896,109330.0,109320.0,0.35982]
[1749582192052,1.01750896,109330.0,109320.0,0.35982]
[1749582192772,0.369441,109330.0,109320.0,0.98068796]
[1749582192983,0.002,109330.0,109320.0,1.07204136]
[1749582193454,0.002,109330.0,109320.0,0.4511734]
[1749582193671,0.002,109330.0,109320.0,1.07204136]
[1749582194115,0.001,109330.0,109320.0,1.07204136]
[1749582194342,0.02587889,109340.0,109330.0,0.2883]
[1749582194779,0.396553,109350.0,109340.0,0.2633]
[1749582195026,0.396553,109350.0,109340.0,0.36154]
[1749582196414,0.398553,109350.0,109340.0,0.36154]
[1749582196590,0.386673,109350.0,109340.0,0.36154]
[1749582197529,0.41429774,109350.0,109340.0,0.36154]
[1749582197968,0.41529774,109350.0,109340.0,0.36154]
[1749582198214,0.43775002,109350.0,109340.0,0.36154]
[1749582200060,0.39257228,109350.0,109340.0,0.36154]
[1749582200959,1.01344024,109350.0,109340.0,0.2633]
[1749582201193,1.01344024,109350.0,109340.0,0.3615]
[1749582201846,1.04034507,109350.0,109340.0,0.2633]
[1749582202069,1.75256643,109350.0,109330.0,0.2635]
[1749582202255,0.62086796,109340.0,109330.0,0.2635]
[1749582202504,0.62086796,109340.0,109330.0,0.3617]
[1749582203158,0.64830396,109340.0,109330.0,0.3617]
[1749582203641,0.61030396,109340.0,109330.0,0.3617]
[1749582204075,0.61030396,109340.0,109330.0,0.2635]
[1749582204286,0.61030396,109340.0,109330.0,0.3617]
[1749582204502,0.001,109340.0,109330.0,0.3617]
[1749582205138,0.62186796,109340.0,109330.0,0.3617]
[1749582205568,0.62286796,109340.0,109330.0,0.3617]
[1749582205786,0.62286796,109340.0,109330.0,0.2315]
[1749582206012,0.62286796,109340.0,109330.0,0.2]
[1749582206013,1.05422136,109340.0,109330.0,0.2]
[1749582206227,1.05422136,109340.0,109330.0,0.2982]
[1749582206450,1.14619805,109340.0,109330.0,0.2]
[1749582206668,1.14619805,109340.0,109320.0,0.0655]
[1749582206669,0.34,109330.0,109320.0,0.202]
[1749582206872,1.05222136,109330.0,109320.0,0.3002]
[1749582207786,1.05222136,109330.0,109320.0,0.3303]
[1749582208225,1.05222136,109330.0,109320.0,0.3634]
[1749582209739,1.05222136,109330.0,109320.0,0.3303]
[1749582210174,1.05222136,109330.0,109320.0,0.3615]
[1749582210413,0.4584734,109330.0,109320.0,0.3615]
[1749582210627,0.02744,109340.0,109330.0,0.0662]
[1749582210855,0.0913534,109340.0,109330.0,0.0662]
[1749582211086,0.1184734,109340.0,109330.0,0.0662]
[1749582211742,0.73934136,109340.0,109330.0,0.0662]
[1749582212179,0.73934136,109340.0,109330.0,0.16436]
[1749582212403,0.74034136,109340.0,109330.0,0.16436]
[1749582213515,0.74134136,109340.0,109330.0,0.16436]
[1749582214225,0.1204734,109340.0,109330.0,0.16436]
[1749582216198,0.4604734,109340.0,109330.0,0.16436]
[1749582217742,0.36912,109340.0,109330.0,0.16436]
[1749582219683,0.342,109340.0,109330.0,0.16436]
[1749582219899,0.002,109340.0,109330.0,0.78522796]
[1749582220132,0.02912,109340.0,109330.0,0.78522796]
[1749582220340,0.002,109340.0,109330.0,0.98522796]
[1749582220552,0.002,109340.0,109330.0,0.36436]
[1749582220758,0.002,109340.0,109330.0,0.98522796]
[1749582222110,0.002,109340.0,109330.0,0.36436]
[1749582222315,0.002,109340.0,109330.0,0.98522796]
[1749582222756,0.002,109340.0,109330.0,1.01022796]
[1749582223788,0.002,109340.0,109330.0,0.38936]
[1749582224003,0.002,109340.0,109330.0,1.01022796]
[1749582224218,0.002,109340.0,109330.0,1.30280674]
[1749582224434,0.002,109340.0,109330.0,0.69108506]
[1749582224647,0.002,109340.0,109330.0,1.30280674]
[1749582224863,0.002,109340.0,109330.0,1.32109905]
[1749582225093,0.002,109340.0,109330.0,1.32109913]
[1749582225297,0.001,109340.0,109330.0,1.33024516]
[1749582225702,0.001,109340.0,109330.0,1.32309913]
[1749582225918,0.001,109340.0,109330.0,1.31195302]
[1749582226122,0.01089228,109350.0,109340.0,0.2628]
[1749582226344,0.01089228,109350.0,109340.0,0.97502136]
[1749582226555,0.02704,109360.0,109350.0,0.0878]
[1749582226789,0.05441413,109360.0,109350.0,0.0878]
[1749582226982,1.01528209,109360.0,109350.0,0.18588]
[1749582227195,0.98790796,109360.0,109350.0,0.18588]
[1749582228086,0.36704,109360.0,109350.0,0.18588]
[1749582228293,0.98790796,109360.0,109350.0,0.18588]
[1749582228504,0.96086796,109360.0,109350.0,0.0878]
[1749582228711,1.00134651,109360.0,109350.0,0.18588]
[1749582229342,0.38047855,109360.0,109350.0,0.18588]
[1749582229551,1.00134651,109360.0,109350.0,0.18588]
[1749582231086,1.02833691,109360.0,109350.0,0.18588]
[1749582233200,0.38047855,109360.0,109350.0,0.18588]
[1749582233408,1.00134651,109360.0,109350.0,0.18588]
[1749582233824,0.38047855,109360.0,109350.0,0.18588]
[1749582234057,0.35343855,109360.0,109350.0,0.18588]
[1749582234261,0.38047855,109360.0,109350.0,0.18588]
[1749582236856,0.35343855,109360.0,109350.0,0.18588]
[1749582237080,0.01343855,109360.0,109350.0,1.00674796]